[Event "Skilling Open CCT 2021"]
[Site "Online"]
[Date "2020.11.19"]
[Round "8.8"]
[White "Le, Quang Liem"]
[Black "Vidit, Santosh Gujrathi"]
[Result "1/2-1/2"]
[ECO "C80"]
[WhiteElo "2744"]
[BlackElo "2636"]
[Annotator "RC"]
[PlyCount "84"]
[EventDate "2020.11.20"]
[EventType "tourn"]
[EventCountry "NET"]
[Tiebreak "Koya+Number of black wins+Number of wins"]
[SourceTitle "playchess.com"]
[Source "ChessBase"]
[SourceQuality "1"]
[TimeControl "900+10"]

1. e4 {[%emt 0:00:00]} e5 {[%emt 0:00:00]} 2. Nf3 {[%emt 0:00:00]} Nc6 {
[%emt 0:00:00]} 3. Bb5 {[%emt 0:00:00]} a6 {[%emt 0:00:00]} 4. Ba4 {[%emt 0:00:
00]} Nf6 {[%emt 0:00:00]} 5. O-O {[%emt 0:00:00]} Nxe4 {[%emt 0:00:00]} 6. d4 {
[%emt 0:00:00]} b5 {[%emt 0:00:00]} 7. Bb3 {[%emt 0:00:00]} d5 {[%emt 0:00:00]}
8. dxe5 {[%emt 0:00:00]} Be6 {[%emt 0:00:00]} 9. Nbd2 {[%emt 0:00:02]} Nc5 {
[%emt 0:00:00]} 10. c3 {[%emt 0:00:03]} d4 {[%emt 0:00:00]} 11. Bxe6 {[%emt 0:
00:06]} Nxe6 {[%emt 0:00:00]} 12. cxd4 {[%emt 0:00:01]} Ncxd4 {[%emt 0:00:02]}
13. a4 {[%emt 0:00:00]} Bb4 {[%emt 0:00:02]} 14. axb5 {[%emt 0:00:04]} Nxb5 {
[%emt 0:00:01]} 15. Qa4 {[%emt 0:00:25]} c5 {[%emt 0:00:02]} 16. Nc4 {[%emt 0:
01:12]} O-O {[%emt 0:00:03]} 17. Rd1 {[%emt 0:01:04]} Nbd4 {[%emt 0:05:21]} 18.
Nxd4 {[%emt 0:00:15]} Nxd4 {[%emt 0:00:00]} 19. Be3 {[%emt 0:00:02]} a5 {
[%emt 0:00:06]} 20. h3 {[%emt 0:05:42]} Ra6 {[%emt 0:02:19]} 21. Bxd4 {[%emt 0:
02:12]} cxd4 {[%emt 0:00:00]} 22. Nd6 {[%emt 0:00:38]} Qg5 {[%emt 0:04:30]} 23.
Rxd4 {[%emt 0:00:09]} Qxe5 {[%emt 0:00:12]} 24. Rxb4 {[%emt 0:00:04]} Rxd6 {
[%emt 0:02:30]} 25. Rb5 {[%emt 0:00:35]} Qe2 {[%emt 0:00:06]} 26. Qxa5 {
[%emt 0:00:45]} Rd2 {[%emt 0:00:22]} 27. Qb6 {[%emt 0:00:12]} Rfd8 {[%emt 0:00:
10]} 28. b4 {[%emt 0:03:13]} h6 {[%emt 0:00:03]} 29. Rba5 {[%emt 0:00:42]} R8d4
{[%emt 0:00:26]} 30. Rf5 {[%emt 0:00:27]} f6 {[%emt 0:01:34]} 31. Qb7 {[%emt 0:
01:16]} Rd7 {[%emt 0:01:55]} 32. Qc6 {[%emt 0:00:27]} R7d6 {[%emt 0:00:15]} 33.
Qc5 {[%emt 0:00:17]} Kh7 {[%emt 0:00:06]} 34. Kh2 {[%emt 0:00:17]} Qe4 {
[%emt 0:00:09]} 35. Ra7 {[%emt 0:00:16]} Rd7 {[%emt 0:00:18]} 36. Rxd7 {
[%emt 0:00:13]} Rxd7 {[%emt 0:00:00]} 37. Rf3 {[%emt 0:00:02]} Rd5 {[%emt 0:00:
10]} 38. Qc7 {[%emt 0:00:04]} Qxb4 {[%emt 0:00:10]} 39. Qf7 {[%emt 0:00:27]}
Qd6+ {[%emt 0:00:09]} 40. Rg3 {[%emt 0:00:02]} Rg5 {[%emt 0:00:01]} 41. Qb3 {
[%emt 0:00:07]} Rxg3 {[%emt 0:00:02]} 42. Qxg3 {[%emt 0:00:06]} Qe6 {[%emt 0:
00:01]} 1/2-1/2

[Event "Skilling Open CCT 2021"]
[Site "Online"]
[Date "2020.11.19"]
[Round "9.1"]
[White "Vidit, Santosh Gujrathi"]
[Black "Vachier-Lagrave, Maxime"]
[Result "1/2-1/2"]
[ECO "D85"]
[WhiteElo "2636"]
[BlackElo "2860"]
[Annotator "RC"]
[PlyCount "86"]
[EventDate "2020.11.20"]
[EventType "tourn"]
[EventCountry "NET"]
[Tiebreak "Koya+Number of black wins+Number of wins"]
[SourceTitle "playchess.com"]
[Source "ChessBase"]
[SourceQuality "1"]
[TimeControl "900+10"]

1. d4 {[%emt 0:00:00]} Nf6 {[%emt 0:00:00]} 2. c4 {[%emt 0:00:00]} g6 {[%emt 0:
00:00]} 3. Nc3 {[%emt 0:00:00]} d5 {[%emt 0:00:00]} 4. cxd5 {[%emt 0:00:00]}
Nxd5 {[%emt 0:00:00]} 5. e4 {[%emt 0:00:00]} Nxc3 {[%emt 0:00:00]} 6. bxc3 {
[%emt 0:00:00]} Bg7 {[%emt 0:00:00]} 7. Be3 {[%emt 0:00:00]} c5 {[%emt 0:00:00]
} 8. Nf3 {[%emt 0:00:00]} Qa5 {[%emt 0:00:01]} 9. Qd2 {[%emt 0:00:00]} O-O {
[%emt 0:00:01]} 10. Rc1 {[%emt 0:00:02]} Bg4 {[%emt 0:00:01]} 11. d5 {[%emt 0:
01:14]} b5 {[%emt 0:00:03]} 12. Bxc5 {[%emt 0:00:09]} Rc8 {[%emt 0:00:02]} 13.
Bb4 {[%emt 0:00:02]} Qc7 {[%emt 0:00:02]} 14. Nd4 {[%emt 0:00:00]} a5 {[%emt 0:
00:16]} 15. Ba3 {[%emt 0:00:01]} b4 {[%emt 0:00:04]} 16. Bb2 {[%emt 0:00:03]}
Qb6 {[%emt 0:00:09]} 17. Bb5 {[%emt 0:00:08]} e5 {[%emt 0:00:17]} 18. dxe6 {
[%emt 0:00:01]} Bxe6 {[%emt 0:00:02]} 19. Nxe6 {[%emt 0:00:03]} fxe6 {[%emt 0:
01:01]} 20. c4 {[%emt 0:00:03]} Rd8 {[%emt 0:00:07]} 21. c5 {[%emt 0:00:46]}
Rxd2 {[%emt 0:00:03]} 22. cxb6 {[%emt 0:00:01]} Rxb2 {[%emt 0:00:01]} 23. Rc8+
{[%emt 0:00:08]} Kf7 {[%emt 0:00:01]} 24. Rc7+ {[%emt 0:00:01]} Kf8 {[%emt 0:
00:01]} 25. Ra7 {[%emt 0:00:22]} Rb1+ {[%emt 0:00:38]} 26. Ke2 {[%emt 0:00:35]}
Rxh1 {[%emt 0:00:01]} 27. f4 {[%emt 0:00:05]} Rc1 {[%emt 0:01:03]} 28. Rxa8 {
[%emt 0:00:07]} Rc8 {[%emt 0:00:03]} 29. e5 {[%emt 0:00:33]} g5 {[%emt 0:00:06]
} 30. g3 {[%emt 0:00:02]} gxf4 {[%emt 0:00:01]} 31. gxf4 {[%emt 0:00:00]} Bh6 {
[%emt 0:00:24]} 32. Kf3 {[%emt 0:00:55]} Kg7 {[%emt 0:01:20]} 33. Ra7+ {
[%emt 0:00:44]} Kg8 {[%emt 0:00:02]} 34. Rc7 {[%emt 0:04:05]} Rf8 {[%emt 0:00:
13]} 35. Rc4 {[%emt 0:00:02]} Bg5 {[%emt 0:02:00]} 36. Kg4 {[%emt 0:02:05]} Bd8
{[%emt 0:00:03]} 37. b7 {[%emt 0:00:02]} Bb6 {[%emt 0:01:18]} 38. Rc8 {[%emt 0:
00:10]} Kg7 {[%emt 0:00:08]} 39. Kf3 {[%emt 0:02:31]} Ba7 {[%emt 0:00:42]} 40.
Be8 {[%emt 0:01:29]} Na6 {[%emt 0:00:47]} 41. Bb5 {[%emt 0:00:06]} Nb8 {
[%emt 0:00:12]} 42. Be8 {[%emt 0:00:01]} Na6 {[%emt 0:00:01]} 43. Bb5 {[%emt 0:
00:01]} Nb8 {[%emt 0:00:01]} 1/2-1/2

[Event "Skilling Open CCT 2021"]
[Site "Online"]
[Date "2020.11.19"]
[Round "9.2"]
[White "So, Wesley"]
[Black "Le, Quang Liem"]
[Result "1-0"]
[ECO "C54"]
[WhiteElo "2741"]
[BlackElo "2744"]
[Annotator "ChessBase"]
[PlyCount "83"]
[EventDate "2020.11.20"]
[EventType "tourn"]
[EventCountry "NET"]
[Tiebreak "Koya+Number of black wins+Number of wins"]
[SourceTitle "playchess.com"]
[Source "ChessBase"]
[SourceQuality "1"]
[TimeControl "900+10"]

1. e4 {[%emt 0:00:00]} e5 {[%emt 0:00:00]} 2. Nf3 {[%emt 0:00:00]} Nc6 {
[%emt 0:00:00]} 3. Bc4 {[%emt 0:00:00]} Bc5 {[%emt 0:00:00]} 4. O-O {[%emt 0:
00:03]} Nf6 {[%emt 0:00:00]} 5. d3 {[%emt 0:00:02]} d6 {[%emt 0:00:05]} 6. c3 {
[%emt 0:00:03]} a6 {[%emt 0:00:04]} 7. a4 {[%emt 0:00:09]} h6 {[%emt 0:00:15]}
8. Re1 {[%emt 0:00:04]} O-O {[%emt 0:00:04]} 9. h3 {[%emt 0:00:05]} Re8 {
[%emt 0:00:16]} 10. Nbd2 {[%emt 0:00:03]} Be6 {[%emt 0:00:23]} 11. Bxe6 {
[%emt 0:00:17]} Rxe6 {[%emt 0:00:00]} 12. b4 {[%emt 0:00:01]} Ba7 {[%emt 0:00:
01]} 13. Qc2 {[%emt 0:00:00]} Qd7 {[%emt 0:00:10]} 14. Nf1 {[%emt 0:00:15]} d5
{[%emt 0:00:33]} 15. Be3 {[%emt 0:00:09]} Bxe3 {[%emt 0:01:01]} 16. Nxe3 {
[%emt 0:00:00]} Rd8 {[%emt 0:00:19]} 17. b5 {[%emt 0:00:35]} Ne7 {[%emt 0:00:
57]} 18. c4 {[%emt 0:00:03]} d4 {[%emt 0:00:28]} 19. Nf5 {[%emt 0:00:03]} a5 {
[%emt 0:01:12]} 20. c5 {[%emt 0:00:49]} Re8 {[%emt 0:01:41]} 21. Ng3 {[%emt 0:
00:49]} Ng6 {[%emt 0:00:09]} 22. Rac1 {[%emt 0:00:53]} Nf4 {[%emt 0:00:24]} 23.
Kh2 {[%emt 0:00:29]} Nh7 {[%emt 0:04:30]} 24. Qd2 {[%emt 0:01:58]} f6 {[%emt 0:
00:12]} 25. Nf5 {[%emt 0:02:07]} Ng6 {[%emt 0:02:04]} 26. Qxa5 {[%emt 0:00:11]}
Ng5 {[%emt 0:00:01]} 27. Nxg5 {[%emt 0:00:54]} fxg5 {[%emt 0:00:00]} 28. c6 {
[%emt 0:01:55]} bxc6 {[%emt 0:00:00]} 29. bxc6 {[%emt 0:00:01]} Qf7 {[%emt 0:
00:11]} 30. Qb5 {[%emt 0:00:09]} Nh4 {[%emt 0:00:24]} 31. f3 {[%emt 0:01:35]}
Nxf5 {[%emt 0:01:02]} 32. exf5 {[%emt 0:00:00]} Qxf5 {[%emt 0:00:01]} 33. Re4 {
[%emt 0:00:02]} Qf8 {[%emt 0:00:15]} 34. a5 {[%emt 0:00:47]} Ra8 {[%emt 0:02:
26]} 35. a6 {[%emt 0:00:48]} Kh7 {[%emt 0:00:30]} 36. Qb7 {[%emt 0:00:39]} Qb8
{[%emt 0:00:36]} 37. Rb1 {[%emt 0:00:26]} Qa7 {[%emt 0:00:02]} 38. Ra1 {
[%emt 0:00:19]} Ree8 {[%emt 0:00:17]} 39. Qb5 {[%emt 0:00:13]} Qb6 {[%emt 0:00:
08]} 40. Rxe5 {[%emt 0:00:23]} Rxe5 {[%emt 0:00:29]} 41. Qxe5 {[%emt 0:00:00]}
Rxa6 {[%emt 0:00:30]} 42. Qf5+ {[%emt 0:00:11]} 1-0

[Event "Skilling Open CCT 2021"]
[Site "Online"]
[Date "2020.11.19"]
[Round "9.3"]
[White "Svidler, Peter"]
[Black "Nakamura, Hikaru"]
[Result "1/2-1/2"]
[ECO "C54"]
[WhiteElo "2742"]
[BlackElo "2829"]
[Annotator "ChessBase"]
[PlyCount "145"]
[EventDate "2020.11.20"]
[EventType "tourn"]
[EventCountry "NET"]
[Tiebreak "Koya+Number of black wins+Number of wins"]
[SourceTitle "playchess.com"]
[Source "ChessBase"]
[SourceQuality "1"]
[TimeControl "900+10"]

1. e4 {[%emt 0:00:00]} e5 {[%emt 0:00:00]} 2. Nf3 {[%emt 0:00:00]} Nc6 {
[%emt 0:00:00]} 3. Bc4 {[%emt 0:00:00]} Bc5 {[%emt 0:00:00]} 4. c3 {[%emt 0:00:
00]} Nf6 {[%emt 0:00:00]} 5. d3 {[%emt 0:00:00]} d6 {[%emt 0:00:00]} 6. O-O {
[%emt 0:00:00]} h6 {[%emt 0:00:00]} 7. Re1 {[%emt 0:00:03]} O-O {[%emt 0:00:00]
} 8. h3 {[%emt 0:00:27]} a5 {[%emt 0:00:01]} 9. Nbd2 {[%emt 0:00:15]} Bb6 {
[%emt 0:00:03]} 10. b3 {[%emt 0:01:28]} Ne7 {[%emt 0:05:35]} 11. d4 {[%emt 0:
00:05]} Ng6 {[%emt 0:00:02]} 12. Bf1 {[%emt 0:00:19]} c6 {[%emt 0:00:07]} 13.
Nc4 {[%emt 0:01:55]} Bc7 {[%emt 0:00:18]} 14. Ba3 {[%emt 0:01:11]} Re8 {
[%emt 0:02:09]} 15. dxe5 {[%emt 0:00:02]} dxe5 {[%emt 0:00:11]} 16. Nd6 {
[%emt 0:00:18]} Bxd6 {[%emt 0:00:10]} 17. Qxd6 {[%emt 0:01:04]} Be6 {[%emt 0:
00:27]} 18. Nxe5 {[%emt 0:01:25]} Nxe5 {[%emt 0:00:03]} 19. Qxe5 {[%emt 0:00:
01]} Bc4 {[%emt 0:00:00]} 20. Qxe8+ {[%emt 0:02:20]} Qxe8 {[%emt 0:00:00]} 21.
Bxc4 {[%emt 0:00:02]} a4 {[%emt 0:01:14]} 22. Bd6 {[%emt 0:01:05]} b5 {[%emt 0:
00:29]} 23. Bd3 {[%emt 0:00:05]} Qe6 {[%emt 0:00:56]} 24. e5 {[%emt 0:00:05]}
Nd5 {[%emt 0:00:02]} 25. c4 {[%emt 0:00:13]} Nf4 {[%emt 0:00:05]} 26. Bf1 {
[%emt 0:00:05]} g5 {[%emt 0:00:58]} 27. cxb5 {[%emt 0:01:17]} cxb5 {[%emt 0:00:
03]} 28. Rad1 {[%emt 0:00:02]} axb3 {[%emt 0:00:15]} 29. axb3 {[%emt 0:00:01]}
Qxb3 {[%emt 0:01:35]} 30. Rb1 {[%emt 0:01:08]} Qc2 {[%emt 0:00:10]} 31. Rxb5 {
[%emt 0:00:52]} Ne6 {[%emt 0:01:07]} 32. Rb8+ {[%emt 0:01:09]} Rxb8 {[%emt 0:
00:02]} 33. Bxb8 {[%emt 0:00:00]} Qd2 {[%emt 0:00:21]} 34. Rb1 {[%emt 0:00:03]}
Qc2 {[%emt 0:00:05]} 35. Re1 {[%emt 0:00:02]} h5 {[%emt 0:00:48]} 36. Ba7 {
[%emt 0:00:09]} Qc3 {[%emt 0:00:10]} 37. Re4 {[%emt 0:00:20]} Qa1 {[%emt 0:00:
10]} 38. Be3 {[%emt 0:00:19]} h4 {[%emt 0:00:09]} 39. Bxg5 {[%emt 0:01:53]}
Nxg5 {[%emt 0:00:03]} 40. Rg4 {[%emt 0:00:01]} Qxe5 {[%emt 0:00:05]} 41. f4 {
[%emt 0:00:01]} Qe3+ {[%emt 0:00:33]} 42. Kh2 {[%emt 0:00:02]} f6 {[%emt 0:00:
05]} 43. fxg5 {[%emt 0:00:22]} f5 {[%emt 0:00:00]} 44. Rxh4 {[%emt 0:01:04]}
Qf2 {[%emt 0:00:07]} 45. Rc4 {[%emt 0:00:02]} Qxf1 {[%emt 0:00:06]} 46. Rc3 {
[%emt 0:00:03]} Qf4+ {[%emt 0:00:32]} 47. Kh1 {[%emt 0:00:01]} Kg7 {[%emt 0:00:
55]} 48. Rf3 {[%emt 0:00:02]} Qc1+ {[%emt 0:00:01]} 49. Kh2 {[%emt 0:00:01]}
Kg6 {[%emt 0:00:00]} 50. Rb3 {[%emt 0:00:14]} Qd1 {[%emt 0:00:03]} 51. Rf3 {
[%emt 0:00:01]} Qd4 {[%emt 0:00:04]} 52. Kh1 {[%emt 0:00:05]} Qa1+ {[%emt 0:00:
04]} 53. Kh2 {[%emt 0:00:01]} Qd1 {[%emt 0:00:00]} 54. Rf2 {[%emt 0:00:15]}
Qd6+ {[%emt 0:00:16]} 55. Kh1 {[%emt 0:00:01]} Qc7 {[%emt 0:00:04]} 56. Rf3 {
[%emt 0:00:02]} Qe5 {[%emt 0:00:00]} 57. Kg1 {[%emt 0:00:02]} Kxg5 {[%emt 0:00:
07]} 58. Kh1 {[%emt 0:00:01]} Kf6 {[%emt 0:00:05]} 59. Kg1 {[%emt 0:00:02]} Ke6
{[%emt 0:00:04]} 60. Kh1 {[%emt 0:00:02]} Kd5 {[%emt 0:00:00]} 61. Kg1 {
[%emt 0:00:02]} Ke4 {[%emt 0:00:01]} 62. Kh1 {[%emt 0:00:02]} Qa1+ {[%emt 0:00:
02]} 63. Kh2 {[%emt 0:00:01]} Qd1 {[%emt 0:00:00]} 64. Rc3 {[%emt 0:00:16]}
Qd6+ {[%emt 0:00:06]} 65. Kh1 {[%emt 0:00:01]} f4 {[%emt 0:00:06]} 66. Rf3 {
[%emt 0:00:09]} Qd1+ {[%emt 0:00:14]} 67. Kh2 {[%emt 0:00:02]} Qxf3 {[%emt 0:
00:00]} 68. gxf3+ {[%emt 0:00:01]} Kxf3 {[%emt 0:00:00]} 69. h4 {[%emt 0:00:01]
} Kg4 {[%emt 0:00:01]} 70. Kg2 {[%emt 0:00:02]} Kxh4 {[%emt 0:00:01]} 71. Kf3 {
[%emt 0:00:01]} Kg5 {[%emt 0:00:00]} 72. Kf2 {[%emt 0:00:00]} f3 {[%emt 0:00:
00]} 73. Kxf3 {[%emt 0:00:01]} 1/2-1/2

[Event "Skilling Open CCT 2021"]
[Site "Online"]
[Date "2020.11.19"]
[Round "9.5"]
[White "Carlsen, Magnus"]
[Black "Giri, Anish"]
[Result "1/2-1/2"]
[ECO "B53"]
[WhiteElo "2881"]
[BlackElo "2731"]
[Annotator "ChessBase"]
[PlyCount "78"]
[EventDate "2020.11.20"]
[EventType "tourn"]
[EventCountry "NET"]
[Tiebreak "Koya+Number of black wins+Number of wins"]
[SourceTitle "playchess.com"]
[Source "ChessBase"]
[SourceQuality "1"]
[TimeControl "900+10"]

1. e4 {[%emt 0:00:00]} c5 {[%emt 0:00:00]} 2. Nf3 {[%emt 0:00:00]} d6 {[%emt 0:
00:00]} 3. d4 {[%emt 0:00:05]} cxd4 {[%emt 0:00:00]} 4. Qxd4 {[%emt 0:00:02]}
Nf6 {[%emt 0:00:06]} 5. h3 {[%emt 0:00:34]} Nc6 {[%emt 0:00:03]} 6. Qe3 {
[%emt 0:00:01]} g6 {[%emt 0:00:07]} 7. Be2 {[%emt 0:00:02]} Bg7 {[%emt 0:00:07]
} 8. O-O {[%emt 0:00:01]} O-O {[%emt 0:00:01]} 9. Rd1 {[%emt 0:00:05]} Be6 {
[%emt 0:00:38]} 10. Nc3 {[%emt 0:00:40]} Qc8 {[%emt 0:00:53]} 11. a3 {[%emt 0:
00:40]} Na5 {[%emt 0:01:53]} 12. Nd4 {[%emt 0:00:14]} Nc4 {[%emt 0:03:14]} 13.
Qg3 {[%emt 0:01:06]} Bd7 {[%emt 0:01:11]} 14. b3 {[%emt 0:05:04]} Na5 {[%emt 0:
00:07]} 15. Nd5 {[%emt 0:01:22]} Re8 {[%emt 0:00:10]} 16. Nxf6+ {[%emt 0:00:33]
} Bxf6 {[%emt 0:00:04]} 17. c4 {[%emt 0:00:05]} Nc6 {[%emt 0:01:06]} 18. Bb2 {
[%emt 0:00:10]} a6 {[%emt 0:00:40]} 19. Qe3 {[%emt 0:00:20]} b5 {[%emt 0:01:11]
} 20. Rac1 {[%emt 0:01:01]} Qb7 {[%emt 0:00:38]} 21. c5 {[%emt 0:01:43]} dxc5 {
[%emt 0:00:24]} 22. Rxc5 {[%emt 0:00:02]} Nxd4 {[%emt 0:00:09]} 23. Bxd4 {
[%emt 0:00:20]} Bxd4 {[%emt 0:00:10]} 24. Rxd4 {[%emt 0:00:00]} Rac8 {[%emt 0:
01:46]} 25. b4 {[%emt 0:00:06]} Rxc5 {[%emt 0:00:15]} 26. bxc5 {[%emt 0:00:00]}
Bc6 {[%emt 0:00:14]} 27. e5 {[%emt 0:00:19]} e6 {[%emt 0:01:43]} 28. Bf3 {
[%emt 0:04:34]} Bxf3 {[%emt 0:00:15]} 29. gxf3 {[%emt 0:00:00]} a5 {[%emt 0:00:
40]} 30. Rd6 {[%emt 0:00:02]} Rc8 {[%emt 0:00:09]} 31. Rb6 {[%emt 0:00:15]} Qd7
{[%emt 0:00:02]} 32. Kg2 {[%emt 0:00:03]} b4 {[%emt 0:00:46]} 33. axb4 {
[%emt 0:00:02]} axb4 {[%emt 0:00:00]} 34. Rxb4 {[%emt 0:00:00]} Qd5 {[%emt 0:
00:01]} 35. Rh4 {[%emt 0:00:41]} Rxc5 {[%emt 0:00:10]} 36. Qh6 {[%emt 0:00:05]}
Qxe5 {[%emt 0:00:00]} 37. Qxh7+ {[%emt 0:00:00]} Kf8 {[%emt 0:00:01]} 38. Qh8+
{[%emt 0:00:01]} Qxh8 {[%emt 0:00:01]} 39. Rxh8+ {[%emt 0:00:05]} Kg7 {[%emt 0:
00:01]} 1/2-1/2

[Event "Skilling Open CCT 2021"]
[Site "Online"]
[Date "2020.11.19"]
[Round "9.6"]
[White "Radjabov, Teimour"]
[Black "Ding, Liren"]
[Result "0-1"]
[ECO "B97"]
[WhiteElo "2758"]
[BlackElo "2836"]
[Annotator "RC"]
[PlyCount "92"]
[EventDate "2020.11.20"]
[EventType "tourn"]
[EventCountry "NET"]
[Tiebreak "Koya+Number of black wins+Number of wins"]
[SourceTitle "playchess.com"]
[Source "ChessBase"]
[SourceQuality "1"]
[TimeControl "900+10"]

1. e4 {[%emt 0:00:00]} c5 {[%emt 0:00:00]} 2. Nf3 {[%emt 0:00:00]} d6 {[%emt 0:
00:00]} 3. d4 {[%emt 0:00:00]} cxd4 {[%emt 0:00:00]} 4. Nxd4 {[%emt 0:00:00]}
Nf6 {[%emt 0:00:00]} 5. Nc3 {[%emt 0:00:00]} a6 {[%emt 0:00:00]} 6. Bg5 {
[%emt 0:00:02]} e6 {[%emt 0:00:00]} 7. f4 {[%emt 0:00:01]} Qb6 {[%emt 0:00:05]}
8. Qd2 {[%emt 0:00:12]} Qxb2 {[%emt 0:00:02]} 9. Rb1 {[%emt 0:00:02]} Qa3 {
[%emt 0:00:01]} 10. e5 {[%emt 0:00:31]} h6 {[%emt 0:00:30]} 11. Bh4 {[%emt 0:
00:18]} dxe5 {[%emt 0:00:03]} 12. fxe5 {[%emt 0:00:02]} Nfd7 {[%emt 0:00:02]}
13. Ne4 {[%emt 0:00:18]} Qxa2 {[%emt 0:00:08]} 14. Rd1 {[%emt 0:00:14]} Qd5 {
[%emt 0:00:04]} 15. Qe3 {[%emt 0:00:15]} Qxe5 {[%emt 0:00:06]} 16. Be2 {
[%emt 0:00:18]} Bc5 {[%emt 0:00:04]} 17. Bg3 {[%emt 0:00:17]} Qd5 {[%emt 0:00:
31]} 18. c4 {[%emt 0:00:20]} Bxd4 {[%emt 0:00:03]} 19. Rxd4 {[%emt 0:00:12]}
Qa5+ {[%emt 0:00:01]} 20. Rd2 {[%emt 0:00:11]} O-O {[%emt 0:00:02]} 21. Bd6 {
[%emt 0:00:10]} f5 {[%emt 0:00:05]} 22. Bxf8 {[%emt 0:00:15]} Nxf8 {[%emt 0:00:
00]} 23. Nd6 {[%emt 0:00:11]} Nbd7 {[%emt 0:00:04]} 24. g4 {[%emt 0:00:51]}
fxg4 {[%emt 0:00:45]} 25. Bxg4 {[%emt 0:00:17]} Qe5 {[%emt 0:01:31]} 26. Ke2 {
[%emt 0:00:25]} b5 {[%emt 0:03:45]} 27. Bf3 {[%emt 0:00:40]} Rb8 {[%emt 0:00:
14]} 28. Qxe5 {[%emt 0:00:14]} Nxe5 {[%emt 0:00:02]} 29. cxb5 {[%emt 0:00:20]}
axb5 {[%emt 0:00:20]} 30. Nxc8 {[%emt 0:00:23]} Rxc8 {[%emt 0:00:05]} 31. Rb1 {
[%emt 0:00:19]} Rc3 {[%emt 0:02:36]} 32. Bg2 {[%emt 0:01:04]} Nfg6 {[%emt 0:00:
59]} 33. Rxb5 {[%emt 0:00:26]} Nf4+ {[%emt 0:00:01]} 34. Kf1 {[%emt 0:00:16]}
Ng4 {[%emt 0:00:52]} 35. Rd8+ {[%emt 0:00:28]} Kf7 {[%emt 0:00:05]} 36. Rb7+ {
[%emt 0:00:15]} Kg6 {[%emt 0:00:12]} 37. Be4+ {[%emt 0:00:25]} Kh5 {[%emt 0:00:
03]} 38. Rb1 {[%emt 0:01:01]} Nxh2+ {[%emt 0:00:39]} 39. Kg1 {[%emt 0:00:12]}
Ng4 {[%emt 0:00:01]} 40. Rd2 {[%emt 0:00:30]} Kh4 {[%emt 0:00:39]} 41. Rf1 {
[%emt 0:00:52]} Kg3 {[%emt 0:00:19]} 42. Kh1 {[%emt 0:00:11]} g5 {[%emt 0:00:
25]} 43. Rg1+ {[%emt 0:00:14]} Kh4 {[%emt 0:00:04]} 44. Re1 {[%emt 0:00:11]} h5
{[%emt 0:00:34]} 45. Kg1 {[%emt 0:00:14]} Kg3 {[%emt 0:00:22]} 46. Rc2 {
[%emt 0:00:32]} Nh3+ {[%emt 0:00:22]} 0-1

[Event "Skilling Open CCT 2021"]
[Site "Online"]
[Date "2020.11.19"]
[Round "9.7"]
[White "Anton Guijarro, David"]
[Black "Duda, Jan-Krzysztof"]
[Result "1-0"]
[ECO "D35"]
[WhiteElo "2667"]
[BlackElo "2774"]
[Annotator "ChessBase"]
[PlyCount "83"]
[EventDate "2020.11.20"]
[EventType "tourn"]
[EventCountry "NET"]
[Tiebreak "Koya+Number of black wins+Number of wins"]
[SourceTitle "playchess.com"]
[Source "ChessBase"]
[SourceQuality "1"]
[TimeControl "900+10"]

1. d4 {[%emt 0:00:00]} Nf6 {[%emt 0:00:00]} 2. c4 {[%emt 0:00:00]} e6 {[%emt 0:
00:00]} 3. Nc3 {[%emt 0:00:00]} d5 {[%emt 0:00:04]} 4. cxd5 {[%emt 0:00:00]}
Nxd5 {[%emt 0:00:02]} 5. e4 {[%emt 0:00:00]} Nxc3 {[%emt 0:00:01]} 6. bxc3 {
[%emt 0:00:00]} c5 {[%emt 0:00:01]} 7. Rb1 {[%emt 0:00:10]} Be7 {[%emt 0:00:02]
} 8. Nf3 {[%emt 0:00:08]} O-O {[%emt 0:00:03]} 9. Bc4 {[%emt 0:00:04]} Nc6 {
[%emt 0:00:34]} 10. O-O {[%emt 0:00:11]} b6 {[%emt 0:00:00]} 11. d5 {[%emt 0:
00:36]} Na5 {[%emt 0:00:21]} 12. Bd3 {[%emt 0:00:11]} c4 {[%emt 0:01:23]} 13.
Bc2 {[%emt 0:00:02]} exd5 {[%emt 0:00:00]} 14. exd5 {[%emt 0:00:01]} Bf6 {
[%emt 0:00:01]} 15. d6 {[%emt 0:01:01]} Re8 {[%emt 0:02:38]} 16. Bf4 {[%emt 0:
00:17]} Bb7 {[%emt 0:00:14]} 17. Nd4 {[%emt 0:01:11]} Be4 {[%emt 0:00:11]} 18.
Nb5 {[%emt 0:01:18]} Bxc2 {[%emt 0:00:26]} 19. Qxc2 {[%emt 0:00:00]} Be5 {
[%emt 0:00:25]} 20. Qd2 {[%emt 0:00:36]} Bxf4 {[%emt 0:05:48]} 21. Qxf4 {
[%emt 0:00:03]} Re6 {[%emt 0:00:00]} 22. Rfe1 {[%emt 0:06:40]} Rf6 {[%emt 0:03:
44]} 23. Qe4 {[%emt 0:00:19]} h6 {[%emt 0:01:31]} 24. d7 {[%emt 0:02:21]} Rb8 {
[%emt 0:00:36]} 25. Qe8+ {[%emt 0:01:11]} Kh7 {[%emt 0:00:03]} 26. Rbd1 {
[%emt 0:00:02]} Nb7 {[%emt 0:00:45]} 27. Qe4+ {[%emt 0:01:17]} Rg6 {[%emt 0:00:
02]} 28. Qd5 {[%emt 0:00:39]} Qg5 {[%emt 0:00:28]} 29. Qxg5 {[%emt 0:00:40]}
Rxg5 {[%emt 0:00:00]} 30. Re8 {[%emt 0:00:17]} Rd8 {[%emt 0:00:06]} 31. Nxa7 {
[%emt 0:00:07]} Rc5 {[%emt 0:00:19]} 32. Kf1 {[%emt 0:00:24]} Rc7 {[%emt 0:00:
13]} 33. Rxd8 {[%emt 0:00:03]} Nxd8 {[%emt 0:00:00]} 34. Nb5 {[%emt 0:00:01]}
Rc5 {[%emt 0:00:12]} 35. a4 {[%emt 0:00:02]} Re5 {[%emt 0:00:10]} 36. Rd6 {
[%emt 0:00:11]} Re7 {[%emt 0:00:00]} 37. Na7 {[%emt 0:00:28]} Kg8 {[%emt 0:00:
21]} 38. Nc8 {[%emt 0:00:03]} Re5 {[%emt 0:00:01]} 39. Nxb6 {[%emt 0:00:04]}
Ra5 {[%emt 0:00:07]} 40. Rd4 {[%emt 0:00:15]} Ra6 {[%emt 0:00:03]} 41. Rxc4 {
[%emt 0:00:16]} Kf8 {[%emt 0:00:17]} 42. Re4 {[%emt 0:00:05]} 1-0